bitfinex-derivatives/quotes_SOLF0:USTF0_20250109
["timestamp","ask_amount","ask_price","bid_price","bid_amount"]
[1736415985433,2.6077,191.84,191.8,6.66032488]
[1736415985637,2.6077,191.84,191.78,71.32779102]
[1736415985832,2.6077,191.84,191.8,6.66032488]
[1736415989446,6.66032488,191.85,191.78,73.93619102]
[1736415989447,2.6079,191.83,191.78,73.93619102]
[1736415989736,6.66032488,191.85,191.78,73.93619102]
[1736415990042,2.6081,191.81,191.78,71.32779102]
[1736415990834,2.6081,191.81,191.78,6.66032488]
[1736415991038,2.6082,191.8,191.76,6.66032488]
[1736415991642,2.6081,191.81,191.76,9.26902488]
[1736415992256,9.26822488,191.83,191.78,6.66032488]
[1736415992645,6.66032488,191.83,191.78,6.66032488]
[1736415993236,6.66032488,191.85,191.79,2.6083]
[1736415993635,2.6078,191.84,191.79,2.6083]
[1736415994038,6.66032488,191.85,191.79,2.6083]
[1736415994460,6.66032488,191.87,191.8,6.66032488]
[1736415995233,2.6075,191.85,191.81,2.6079]
[1736415996338,6.66032488,191.85,191.8,6.66032488]
[1736415996545,6.66032488,191.85,191.78,6.66032488]
[1736415996743,6.66032488,191.83,191.76,6.66032488]
[1736415996931,6.66032488,191.81,191.74,6.66032488]
[1736415997233,1.5453,191.92,191.76,6.66032488]
[1736415997438,6.66032488,191.83,191.78,6.66032488]
[1736415998048,6.66032488,191.85,191.78,9.26872488]
[1736415998240,6.66032488,191.85,191.78,6.66032488]
[1736415998438,2.6079,191.82,191.79,2.6083]
[1736415999142,6.66032488,191.83,191.76,6.66032488]
[1736416000244,2.6081,191.81,191.78,2.6084]
[1736416000730,2.6081,191.81,191.77,2.6086]
[1736416001441,2.6083,191.8,191.76,9.26902488]
[1736416002143,6.66032488,191.81,191.76,6.66032488]
[1736416002442,2.6084,191.79,191.76,6.66032488]
[1736416003244,6.66032488,191.79,191.72,6.66032488]
[1736416003439,6.66032488,191.79,191.74,6.66032488]
[1736416003642,5.214,191.89,191.74,6.66032488]
[1736416003840,2.6083,191.8,191.75,2.6088]
[1736416004040,2.6083,191.8,191.76,6.66032488]
[1736416004747,2.6083,191.8,191.76,9.26902488]
[1736416006653,2.6081,191.81,191.77,2.6085]
[1736416007840,2.6081,191.81,191.76,6.66032488]
[1736416008041,2.6081,191.81,191.78,2.6085]
[1736416009340,1.5453,191.92,191.78,6.66032488]
[1736416009551,6.66032488,191.86,191.78,6.66032488]
[1736416010653,2.6078,191.84,191.8,2.6081]
[1736416016261,2.6078,191.83,191.8,2.6081]
[1736416016559,2.6078,191.83,191.79,2.6083]
[1736416020757,1.5453,191.92,191.8,6.66032488]
[1736416021103,6.66032488,191.89,191.84,6.66032488]
[1736416021363,2.6072,191.88,191.84,6.66032488]
[1736416021761,6.66032488,191.89,191.84,6.66032488]
[1736416022080,2.6073,191.87,191.84,6.66032488]
[1736416022664,2.6073,191.87,191.83,2.6078]
[1736416022864,6.66032488,191.89,191.83,2.6078]
[1736416023083,2.6074,191.86,191.83,2.6078]
[1736416025359,6.66032488,191.87,191.83,2.6078]
[1736416025360,2.6073,191.87,191.83,2.6078]
[1736416025572,6.66032488,191.91,191.84,6.66032488]
[1736416025774,8.20782488,191.93,191.88,6.66032488]
[1736416025984,8.89301869,192.01,191.88,6.66032488]
[1736416026161,8.89301869,192.01,191.78,1.5669]
[1736416026162,6.66032488,191.97,191.9,6.66032488]
[1736416026475,2.6061,191.96,191.91,2.6067]
[1736416026665,6.66032488,191.97,191.9,6.66032488]
[1736416026886,6.66032488,191.95,191.88,6.66032488]
[1736416027183,9.26662488,191.95,191.88,6.66032488]
[1736416027361,6.66032488,191.95,191.9,6.66032488]
[1736416027588,2.606,191.96,191.92,6.66032488]
[1736416029567,6.66032488,191.98,191.92,6.66032488]
[1736416029773,6.66032488,191.98,191.93,2.6064]
[1736416029969,8.12512488,192.0,191.94,6.66032488]
[1736416030274,6.66032488,192.02,191.94,6.66032488]
[1736416030467,2.6054,192.01,191.96,2.606]
[1736416030665,6.66032488,192.02,191.94,6.66032488]
[1736416031662,2.6055,192.0,191.94,6.66032488]
[1736416031860,1.5622,192.05,191.96,6.66032488]
[1736416032065,6.66032488,192.03,191.96,6.66032488]
[1736416032371,9.26582488,192.01,191.95,2.6061]
[1736416033169,9.26582488,192.01,191.96,9.26622488]
[1736416033874,6.66032488,192.01,191.96,9.26622488]
[1736416034073,2.6052,192.02,191.97,2.6058]
[1736416035669,2.6054,192.01,191.96,9.26632488]
[1736416035873,6.66032488,192.03,191.96,6.66032488]
[1736416036069,6.66032488,192.01,191.94,6.66032488]
[1736416036882,9.26572488,192.01,191.95,2.6061]
[1736416037070,9.26572488,192.01,191.94,6.66032488]
[1736416038074,9.26572488,192.01,191.96,2.606]
[1736416039676,2.6056,192.0,191.95,2.6061]
[1736416039967,6.66032488,191.99,191.92,6.66032488]
[1736416040380,2.6059,191.97,191.92,9.26672488]
[1736416040594,6.66032488,191.99,191.92,6.66032488]
[1736416041775,1.5622,192.05,191.92,6.66032488]
[1736416041974,6.66032488,192.0,191.94,6.66032488]
[1736416042476,2.6058,191.99,191.94,9.26662488]
[1736416042684,6.66032488,192.0,191.94,9.26662488]
[1736416042975,6.66032488,192.0,191.94,6.66032488]
[1736416043275,6.66032488,191.98,191.92,6.66032488]
[1736416043580,6.66032488,191.96,191.9,6.66032488]
[1736416044076,2.6063,191.95,191.9,9.26712488]
[1736416045476,2.6063,191.95,191.91,2.6067]
[1736416045775,1.5622,192.05,191.86,1.5421]
[1736416045776,1.5622,192.05,191.94,6.66032488]
[1736416045990,6.66032488,192.0,191.94,9.26652488]
[1736416047183,2.6059,191.98,191.94,9.26652488]
[1736416048578,6.66032488,192.0,191.92,6.66032488]
[1736416048794,2.6059,191.97,191.93,2.6064]
[1736416049382,2.6061,191.96,191.92,9.26682488]
[1736416049794,2.6061,191.96,191.92,6.66032488]
[1736416051175,2.6062,191.95,191.92,6.66032488]
[1736416052481,6.66032488,191.98,191.91,2.6067]
[1736416052677,6.66032488,191.96,191.9,6.66032488]
[1736416052972,6.66032488,191.96,191.86,1.5421]
[1736416052973,6.66032488,191.96,191.88,6.66032488]
[1736416053180,6.66032488,191.94,191.88,6.66032488]
[1736416053578,1.5622,192.05,191.86,1.5421]
[1736416053579,6.66032488,191.92,191.86,6.66032488]
[1736416054178,2.607,191.9,191.86,6.66032488]
[1736416055480,2.6068,191.91,191.86,9.26762488]
[1736416056686,2.6068,191.91,191.83,64.64970223]
[1736416056687,2.6065,191.93,191.88,9.26742488]
[1736416056983,6.66032488,191.96,191.9,6.66032488]
[1736416057382,2.6063,191.95,191.9,9.26702488]
[1736416057784,6.66032488,191.96,191.9,9.26702488]
[1736416059082,6.66032488,191.96,191.89,2.607]
[1736416059781,2.6064,191.94,191.89,2.607]
[1736416060179,2.6064,191.93,191.89,2.607]
[1736416061880,6.66032488,191.94,191.88,6.66032488]
[1736416062084,2.6069,191.9,191.86,9.26772488]
[1736416063283,2.6067,191.91,191.86,9.26772488]
[1736416063782,6.66032488,191.92,191.86,9.26772488]
[1736416064087,2.6069,191.9,191.86,9.26772488]
[1736416064992,2.6069,191.9,191.86,6.66032488]
[1736416067190,2.6067,191.91,191.86,6.66032488]
[1736416067587,2.6067,191.91,191.87,2.6073]
[1736416068692,6.66032488,191.92,191.86,2.6073]
[1736416068988,2.6069,191.9,191.86,2.6073]
[1736416069390,2.6072,191.88,191.85,6.66032488]
[1736416069980,2.6072,191.88,191.84,2.6077]
[1736416071092,2.607,191.89,191.85,2.6075]
[1736416071392,2.607,191.89,191.85,9.26782488]
[1736416079842,6.66032488,191.88,191.84,2.6077]
[1736416080094,6.66032488,191.86,191.83,64.64970223]
[1736416080499,9.26782488,191.86,191.83,64.64970223]
[1736416081425,9.26782488,191.86,191.81,2.6081]
[1736416081426,2.6076,191.85,191.81,2.6081]
[1736416082110,2.6076,191.85,191.8,2.6082]
[1736416082612,6.66032488,191.84,191.75,30.33468556]
[1736416082811,6.66032488,191.84,191.78,2.6084]
[1736416083296,1.6128,191.92,191.76,2.6087]
[1736416083297,2.6081,191.81,191.76,2.6087]
[1736416083502,6.66032488,191.82,191.75,8.24392488]
[1736416084297,6.66032488,191.82,191.75,6.66032488]
[1736416084713,2.6082,191.8,191.75,9.26912488]
[1736416087202,9.26852488,191.8,191.75,9.26912488]
[1736416087405,9.26852488,191.8,191.75,2.6088]
[1736416087604,6.66032488,191.8,191.75,2.6088]
[1736416087803,2.6084,191.79,191.75,2.6088]
[1736416088302,6.66032488,191.78,191.7,66.3090161]
[1736416088506,6.66032488,191.76,191.71,6.66032488]
[1736416089101,9.26912488,191.76,191.71,9.26972488]
[1736416090202,2.609,191.75,191.71,6.66032488]
[1736416090399,2.609,191.75,191.7,67.2985161]
[1736416090597,6.66032488,191.76,191.7,64.6889161]
[1736416091102,6.66032488,191.76,191.69,6.66032488]
[1736416091507,9.26942488,191.74,191.69,9.27002488]
[1736416091906,6.66032488,191.76,191.69,6.66032488]
[1736416092102,194.0,191.87,191.74,6.66032488]
[1736416092298,6.66032488,191.81,191.76,6.66032488]
[1736416092707,2.6084,191.79,191.74,9.26922488]
[1736416093711,2.6084,191.79,191.75,2.6089]
[1736416094107,2.6085,191.78,191.74,6.66032488]
[1736416094311,6.66032488,191.79,191.72,6.66032488]
[1736416095112,2.6088,191.76,191.72,9.26952488]
[1736416095512,6.66032488,191.79,191.72,6.66032488]
[1736416095823,6.66032488,191.77,191.7,6.66032488]
[1736416096318,6.66032488,191.75,191.68,6.66032488]
[1736416096716,6.66032488,191.75,191.68,9.26992488]
[1736416097224,2.6089,191.74,191.69,2.6095]
[1736416097421,6.66032488,191.75,191.7,6.66032488]
[1736416098413,9.26912488,191.75,191.7,9.26962488]
[1736416098737,9.26912488,191.75,191.7,2.6093]
[1736416098911,2.6089,191.74,191.7,2.6093]
[1736416099412,2.6089,191.74,191.7,9.26962488]
[1736416100626,2.609,191.73,191.69,2.6095]
[1736416101723,6.66032488,191.75,191.69,2.6095]
[1736416101933,6.66032488,191.75,191.68,6.66032488]
[1736416101934,2.6089,191.74,191.7,2.6094]
[1736416102419,2.6089,191.74,191.68,6.66032488]
[1736416103228,2.6089,191.74,191.69,2.6095]
[1736416107732,2.6093,191.71,191.65,8.25152488]
[1736416108320,2.6093,191.71,191.67,2.6098]
[1736416110130,6.66032488,191.73,191.67,9.27012488]
[1736416110345,2.6092,191.72,191.68,2.6096]
[1736416110923,2.6093,191.71,191.67,9.27012488]
[1736416116334,6.66032488,191.71,191.62,1.6205]
[1736416116532,6.66032488,191.71,191.64,6.66032488]
[1736416117044,2.6097,191.69,191.64,9.27052488]
[1736416117238,2.6097,191.69,191.64,6.66032488]
[1736416117833,2.6097,191.69,191.65,2.61]
[1736416118737,6.66032488,191.69,191.64,6.66032488]
[1736416118933,2.6097,191.68,191.64,9.27052488]
[1736416123931,6.66032488,191.65,191.59,28.75108556]
[1736416124133,6.66032488,191.62,191.59,28.75108556]
[1736416124837,6.66032488,191.64,191.59,28.75108556]
[1736416125078,6.66032488,191.64,191.56,6.66032488]
[1736416126135,9.27052488,191.64,191.59,2.6108]
[1736416126746,6.66032488,191.62,191.59,2.6108]
[1736416127040,6.66032488,191.62,191.58,2.611]
[1736416128246,9.27082488,191.62,191.58,2.611]
[1736416128744,2.6104,191.63,191.59,2.6109]
[1736416129639,6.66032488,191.64,191.6,2.6107]
[1736416130641,9.27052488,191.64,191.6,2.6107]
[1736416130844,6.66032488,191.62,191.53,7.18777139]
[1736416131032,6.66032488,191.58,191.53,7.18777139]
[1736416131436,6.66032488,191.59,191.53,13.84809627]
[1736416131845,6.66032488,191.59,191.53,6.66032488]
[1736416132049,6.66032488,191.59,191.54,2.6115]
[1736416132237,6.66032488,191.59,191.53,6.66032488]
[1736416133147,6.66032488,191.59,191.55,2.6113]
[1736416134248,8.3078,191.71,191.49,1.5691]
[1736416134249,3.089,191.71,191.57,6.66032488]
[1736416134463,9.74932488,191.71,191.65,6.66032488]
[1736416134941,2.6099,191.67,191.65,6.66032488]
[1736416136740,2.6099,191.67,191.63,9.27072488]
[1736416137345,2.6099,191.67,191.63,2.6104]
[1736416139343,3.089,191.71,191.6,10.46416898]
[1736416139664,5.2171,191.77,191.56,1.5385]
[1736416139665,10.46416898,191.77,191.63,10.46416898]
[1736416139857,0.80550056,191.76,191.63,10.46416898]
[1736416140646,2.6092,191.72,191.63,10.46416898]
[1736416141040,10.46416898,191.77,191.63,10.46416898]
[1736416141236,10.46416898,191.77,191.66,10.46416898]
[1736416141645,1.561,191.78,191.66,10.46416898]
[1736416141858,1.561,191.78,191.69,10.46416898]
[1736416142841,1.5268,191.83,191.72,10.46416898]
[1736416143654,143.91249667,191.92,191.75,10.46416898]
[1736416143869,2.6078,191.83,191.78,2.6083]
[1736416144050,10.46416898,191.87,191.75,10.46416898]
[1736416144258,0.80497161,191.86,191.72,10.46416898]
[1736416144543,10.46416898,191.87,191.72,10.46416898]
[1736416144742,0.8049684,191.86,191.72,10.46416898]
[1736416145155,10.46416898,191.87,191.72,10.46416898]
[1736416145954,2.6077,191.83,191.78,2.6083]
[1736416146154,2.6077,191.83,191.72,10.46416898]
[1736416146549,10.46416898,191.87,191.72,10.46416898]
[1736416146744,2.6078,191.82,191.72,10.46416898]
[1736416146944,10.46416898,191.87,191.72,10.46416898]
[1736416147451,2.6077,191.83,191.72,10.46416898]
[1736416148149,2.6077,191.83,191.78,2.6083]
[1736416149248,2.6077,191.83,191.72,10.46416898]
[1736416149457,2.6077,191.83,191.77,2.6085]
[1736416150153,2.6078,191.82,191.77,2.6085]
[1736416151556,194.0,191.85,191.69,51.42482875]
[1736416151757,0.80536414,191.84,191.63,7.18777139]
[1736416151959,10.46416898,191.73,191.63,7.18777139]
[1736416152154,2.6097,191.68,191.63,7.18777139]
[1736416152373,2.6097,191.68,191.6,4.17]
[1736416152555,10.46416898,191.73,191.6,1.5593]
[1736416152858,2.6096,191.69,191.62,2.6105]
[1736416153055,10.46416898,191.73,191.61,10.46416898]
[1736416154149,2.6092,191.72,191.63,2.6104]
[1736416156158,2.6092,191.72,191.61,10.46416898]
[1736416156380,2.6092,191.72,191.64,2.6102]
[1736416157256,2.6092,191.72,191.61,10.46416898]
[1736416157454,2.6092,191.72,191.65,2.6101]
[1736416158258,2.6091,191.73,191.66,2.6099]
[1736416158463,2.6091,191.73,191.61,10.46416898]
[1736416159768,2.6091,191.73,191.65,2.61]
[1736416160061,2.6091,191.73,191.61,10.46416898]
[1736416161064,2.6091,191.73,191.67,2.6098]
[1736416161259,10.46416898,191.75,191.67,2.6098]
[1736416161456,13.07286898,191.75,191.64,10.46416898]
[1736416162764,13.07286898,191.75,191.68,2.6096]
[1736416163566,13.07286898,191.75,191.64,10.46416898]
[1736416163820,10.46416898,191.75,191.64,10.46416898]
[1736416163974,12.07646898,191.79,191.67,10.46416898]
[1736416164170,10.46416898,191.79,191.68,3.1672]
[1736416164357,10.46416898,191.82,191.73,2.6089]
[1736416165474,2.6083,191.79,191.73,2.6089]
[1736416167976,2.6083,191.79,191.74,2.6088]
[1736416169777,2.6083,191.79,191.75,2.6087]
[1736416171266,10.46416898,191.82,191.75,2.6087]
[1736416171472,2.6079,191.81,191.77,2.6085]
[1736416172375,2.6081,191.8,191.77,2.6085]
[1736416174382,2.608,191.81,191.77,2.6085]
[1736416175677,10.46416898,191.82,191.78,2.6083]
[1736416176073,2.6082,191.8,191.7,10.46416898]
[1736416176578,10.46416898,191.82,191.75,2.6086]
[1736416176880,2.6082,191.79,191.75,2.6086]
[1736416178277,2.6081,191.8,191.76,2.6086]
[1736416179782,2.6081,191.8,191.75,2.6087]
[1736416180979,2.6081,191.8,191.76,2.6086]
[1736416181183,10.46416898,191.83,191.7,10.46416898]
[1736416181382,6.68857423,191.81,191.75,6.68857423]
[1736416181578,9.29657423,191.81,191.76,2.6085]
[1736416188590,9.29657423,191.81,191.77,2.6084]
[1736416191091,6.68857423,191.81,191.79,2.6082]
[1736416191288,9.29627423,191.83,191.79,2.6082]
[1736416192093,6.68857423,191.83,191.79,2.6083]
[1736416192696,9.29637423,191.83,191.79,2.6083]
[1736416196313,2.608,191.82,191.79,2.6083]
[1736416197793,6.68857423,191.83,191.79,2.6083]
[1736416197997,9.29637423,191.83,191.79,2.6083]
[1736416200797,2.6077,191.84,191.8,2.6082]
[1736416201017,6.68857423,191.85,191.77,6.68857423]
[1736416201213,1.5967,191.89,191.79,6.68857423]
[1736416201414,1.4822,191.91,191.72,7.18777139]
[1736416201415,6.68857423,191.87,191.81,6.68857423]
[1736416202374,1.4822,191.91,191.83,6.68857423]
[1736416202500,6.68857423,191.9,191.83,6.68857423]
[1736416202817,9.29537423,191.91,191.83,6.68857423]
[1736416203003,9.29537423,191.91,191.85,6.68857423]
[1736416203206,2.6068,191.91,191.85,6.68857423]
[1736416204110,6.68857423,191.92,191.87,2.6072]
[1736416204301,6.68857423,191.92,191.85,6.68857423]
[1736416204510,1.5837,191.97,191.87,6.68857423]
[1736416204714,6.68857423,191.94,191.87,6.68857423]
[1736416205501,6.68857423,191.94,191.9,2.6068]
[1736416205701,6.68857423,191.94,191.76,198.18777139]
[1736416205904,9.29487423,191.94,191.86,6.68857423]
[1736416206704,9.29487423,191.94,191.88,2.607]
[1736416207805,9.29487423,191.94,191.89,2.607]
[1736416208000,6.68857423,191.93,191.86,6.68857423]
[1736416209116,6.68857423,191.93,191.9,2.6068]
[1736416210210,2.6063,191.94,191.9,2.6068]
[1736416210806,1.6231,192.02,191.94,2.6063]
[1736416210807,2.6058,191.98,191.94,2.6063]
[1736416211008,9.29437423,191.98,191.94,2.6063]
[1736416216208,2.6059,191.97,191.94,2.6063]
[1736416216715,6.68857423,191.98,191.94,2.6063]
[1736416216914,9.29437423,191.98,191.94,2.6063]
[1736416217701,2.6057,191.99,191.92,6.68857423]
[1736416217909,9.29427423,191.99,191.92,6.68857423]
[1736416218309,9.29427423,191.99,191.94,6.68857423]
[1736416219010,2.6057,191.99,191.94,6.68857423]
[1736416219213,2.6057,191.99,191.95,2.6061]
[1736416219912,9.29427423,191.99,191.95,2.6061]
[1736416220105,9.29427423,191.99,191.94,2.6063]
[1736416221406,2.6057,191.99,191.92,6.68857423]
[1736416221607,9.29427423,191.99,191.95,2.6061]
[1736416222110,2.6059,191.97,191.83,194.1292]
[1736416222314,6.68857423,191.97,191.89,6.68857423]
[1736416222616,2.6061,191.96,191.91,2.6066]
[1736416222813,6.68857423,191.97,191.91,6.68857423]
[1736416223208,6.68857423,191.99,191.93,6.68857423]
[1736416223411,6.68857423,191.99,191.94,2.6063]
[1736416223911,9.29427423,191.99,191.94,2.6063]
[1736416226025,2.6057,191.99,191.94,2.6063]
[1736416226511,9.29437423,191.98,191.94,2.6063]
[1736416227110,9.29417423,192.0,191.95,2.6062]
[1736416227314,6.68857423,192.0,191.95,2.6062]
[1736416228219,2.6057,191.99,191.95,2.6062]
[1736416230020,6.68857423,191.98,191.95,2.6062]
[1736416232209,9.29437423,191.98,191.94,2.6063]
[1736416233313,2.6058,191.98,191.94,2.6063]
[1736416234117,6.68857423,192.0,191.93,6.68857423]
[1736416234317,2.6057,191.99,191.95,2.6062]
[1736416237713,9.29407423,192.01,191.96,2.606]
[1736416237917,1.5615,192.05,191.97,6.68857423]
[1736416238122,2.6051,192.03,191.99,6.68857423]
[1736416238350,1.5615,192.05,191.99,6.68857423]
[1736416238726,2.605,192.04,192.0,2.6055]
[1736416239224,1.5615,192.05,191.99,6.68857423]
[1736416240218,2.6051,192.03,191.99,9.29417423]
[1736416240524,6.68857423,192.04,191.99,9.29417423]
[1736416241121,9.29357423,192.04,192.0,2.6055]
[1736416241815,6.68857423,192.04,191.99,6.68857423]
[1736416242018,6.68857423,192.06,192.01,2.6053]
[1736416242630,2.6048,192.06,191.99,6.68857423]
[1736416242824,1.4792,192.11,192.03,6.68857423]
[1736416243017,8.16777423,192.11,192.03,6.68857423]
[1736416243336,2.6043,192.09,192.03,6.68857423]
[1736416243916,2.6042,192.1,192.05,2.6048]
[1736416244320,2.6042,192.1,192.05,9.29337423]
[1736416249132,2.6042,192.1,192.05,6.68857423]
[1736416249332,2.6042,192.1,192.06,2.6047]
[1736416252638,2.6045,192.08,192.04,2.6049]
[1736416253543,9.29297423,192.09,192.04,2.6049]
[1736416258946,6.68857423,192.07,191.97,3.0047]
[1736416259139,6.68857423,192.05,192.0,6.68857423]
[1736416259346,6.68857423,192.05,191.97,3.0047]
[1736416259541,6.68857423,192.05,191.98,6.68857423]
[1736416260748,6.68857423,192.03,191.99,2.6056]
[1736416261140,6.68857423,192.03,191.98,6.68857423]
[1736416261347,1.4792,192.11,192.0,6.68857423]
[1736416261551,6.68857423,192.07,192.0,6.68857423]
[1736416262042,9.29327423,192.07,192.02,9.29377423]
[1736416262849,2.6047,192.07,192.02,6.68857423]
[1736416263151,9.29327423,192.07,192.03,2.6051]
[1736416263372,1.4792,192.11,192.04,6.68857423]
[1736416263648,6.68857423,192.12,192.06,6.68857423]
[1736416264143,1.5449,192.15,192.06,6.68857423]
[1736416264350,6.68857423,192.12,192.06,6.68857423]
[1736416264552,2.6041,192.11,192.07,2.6045]
[1736416266443,2.6042,192.1,192.07,2.6045]
[1736416269065,9.29277423,192.1,192.07,2.6045]
[1736416269252,9.29277423,192.1,192.06,2.6047]
[1736416270647,2.6042,192.1,192.06,2.6047]
[1736416272659,6.68857423,192.11,192.04,6.68857423]
[1736416272863,2.6042,192.1,192.06,2.6047]
[1736416273157,6.68857423,192.11,192.04,6.68857423]
[1736416273382,6.68857423,192.09,192.02,6.68857423]
[1736416273764,9.29297423,192.09,192.04,2.6049]
[1736416276374,6.68857423,192.07,191.97,3.0047]
[1736416276657,6.68857423,192.07,192.0,6.68857423]
[1736416276869,6.68857423,192.05,192.0,6.68857423]
[1736416278166,9.29357423,192.05,192.01,2.6054]
[1736416281467,6.68857423,192.03,191.97,1.5341]
[1736416281665,6.68857423,192.03,191.97,8.22267423]
[1736416282063,5.2077,192.13,191.98,2.6058]
[1736416282371,6.68857423,192.04,191.97,1.5341]
[1736416282571,6.68857423,192.04,191.97,8.22267423]
[1736416282782,2.6053,192.03,191.98,2.6058]
[1736416283075,6.68857423,192.05,191.97,8.22267423]
[1736416283976,2.6053,192.03,191.98,2.6058]
[1736416284569,2.6052,192.03,191.98,2.6058]
[1736416285273,2.6052,192.03,191.99,2.6057]
[1736416285472,6.68857423,192.05,191.99,6.68857423]
[1736416285965,6.68857423,192.05,192.0,2.6055]
[1736416286268,9.29357423,192.05,192.0,2.6055]
[1736416286467,6.68857423,192.05,192.0,2.6055]
[1736416287470,6.68857423,192.07,192.0,2.6055]
[1736416288373,2.605,192.04,192.0,2.6055]
[1736416288763,6.68857423,192.05,191.99,2.6057]
[1736416290074,6.68857423,192.05,191.98,2.6058]
[1736416290772,2.6054,192.02,191.98,2.6058]
[1736416292475,6.68857423,192.03,191.92,1.6185]
[1736416292680,6.68857423,192.01,191.95,6.68857423]
[1736416293477,2.6056,192.0,191.96,2.606]
[1736416297078,7.59236945,192.13,191.95,6.68857423]
[1736416297279,6.01213548,192.12,191.97,6.68857423]
[1736416297483,0.80413548,192.11,191.97,6.68857423]
[1736416297710,9.29357423,192.05,192.01,2.6053]
[1736416299582,2.605,192.04,192.01,2.6053]
[1736416302197,6.68857423,192.03,191.96,6.68857423]
[1736416302387,6.68857423,192.01,191.96,6.68857423]
[1736416302885,2.6057,192.0,191.96,9.29467423]
[1736416303083,6.68857423,192.01,191.96,9.29467423]
[1736416303289,2.6057,192.0,191.96,9.29467423]
[1736416303494,2.6057,192.0,191.96,2.6061]
[1736416309599,6.68857423,191.99,191.91,8.16357423]
[1736416310097,9.29457423,191.97,191.93,2.6064]
[1736416310597,2.6063,191.95,191.91,4.0817]
[1736416310897,6.68857423,191.97,191.91,1.475]
[1736416312101,2.6061,191.96,191.92,2.6066]
[1736416312903,2.6063,191.95,191.91,2.6067]
[1736416313196,6.68857423,191.97,191.89,6.68857423]
[1736416313497,6.68857423,191.95,191.89,6.68857423]
[1736416313701,2.6065,191.94,191.89,9.29557423]
[1736416314194,2.6066,191.93,191.88,2.6072]
[1736416314404,6.68857423,191.93,191.88,2.6072]
[1736416314602,6.68857423,191.93,191.87,73.32660197]
[1736416314906,6.68857423,191.95,191.89,2.607]
[1736416316209,2.6065,191.93,191.89,2.607]
[1736416318209,2.6066,191.92,191.89,2.607]
[1736416318896,2.6066,191.92,191.88,6.68857423]
[1736416319203,2.6066,191.92,191.88,9.29577423]
[1736416319402,6.68857423,191.93,191.88,9.29577423]
[1736416319597,6.68857423,191.93,191.88,6.68857423]
[1736416319806,6.68857423,191.93,191.9,2.6069]
[1736416320002,2.6065,191.94,191.9,2.6069]
[1736416322899,9.29487423,191.95,191.91,2.6067]
[1736416323108,6.68857423,192.0,191.92,6.68857423]
[1736416323329,6.68857423,192.0,191.94,6.68857423]
[1736416324196,2.6058,191.99,191.96,2.6061]
[1736416324802,2.6058,191.99,191.95,2.6062]
[1736416326203,2.6059,191.98,191.95,2.6062]
[1736416326606,2.6059,191.98,191.94,2.6063]
[1736416326907,9.29447423,191.98,191.94,2.6063]
[1736416327606,6.68857423,191.96,191.85,8.78507139]
[1736416327810,6.68857423,191.94,191.88,6.68857423]
[1736416328008,6.68857423,191.92,191.86,6.68857423]
[1736416328337,2.607,191.9,191.86,9.29597423]
[1736416328811,9.29537423,191.92,191.86,9.29597423]
[1736416330208,9.29537423,191.92,191.87,2.6073]
[1736416331123,2.6068,191.91,191.87,2.6073]
[1736416331610,6.68857423,191.92,191.87,2.6073]
[1736416331822,9.29527423,191.92,191.88,2.6071]
[1736416332503,6.68857423,191.94,191.88,9.29567423]
[1736416332810,2.6066,191.93,191.89,2.607]
[1736416333113,2.6064,191.95,191.9,9.29547423]
[1736416333910,2.6064,191.94,191.9,9.29547423]
[1736416334518,2.6064,191.94,191.9,6.68857423]
[1736416334722,6.68857423,191.96,191.88,6.68857423]
[1736416334920,2.6066,191.93,191.88,6.68857423]
[1736416335127,6.68857423,191.94,191.88,9.29577423]
[1736416335354,6.68857423,191.94,191.88,6.68857423]
[1736416336108,2.6065,191.93,191.89,2.607]
[1736416336512,6.68857423,191.92,191.85,1.5973]
[1736416336713,2.6071,191.89,191.85,10.89347423]
[1736416337127,2.6071,191.89,191.85,8.28587423]
[1736416337318,6.68857423,191.92,191.85,8.28587423]
[1736416337607,2.6069,191.91,191.87,6.68857423]
[1736416339522,2.6069,191.91,191.87,9.29587423]
[1736416340622,2.6069,191.91,191.87,6.68857423]
[1736416340824,2.607,191.9,191.85,10.89347423]
[1736416341021,6.68857423,191.92,191.85,10.89347423]
[1736416341217,2.607,191.9,191.86,2.6074]
[1736416341428,6.68857423,191.92,191.85,8.28587423]
[1736416342323,6.68857423,191.92,191.85,6.68857423]
[1736416342726,2.6072,191.89,191.85,2.6076]